bitfinex/quotes_BTCUSD_20250826
["timestamp","ask_amount","ask_price","bid_price","bid_amount"]
[1756190930093,2.31569958,110250.0,110240.0,0.00014316]
[1756190930310,2.30558099,110250.0,110240.0,0.00014316]
[1756190930516,0.5214388,110230.0,110220.0,0.06141445]
[1756190930660,1.38258991,110230.0,110220.0,0.06358761]
[1756190931887,1.38258991,110230.0,110220.0,0.06458761]
[1756190932916,1.38258991,110230.0,110220.0,0.00630316]
[1756190933324,1.22610991,110230.0,110220.0,0.00530316]
[1756190933687,1.38250991,110230.0,110220.0,0.00730316]
[1756190934411,1.38251492,110230.0,110220.0,0.00730316]
[1756190935657,1.22611492,110230.0,110220.0,0.00730316]
[1756190935907,1.38247492,110230.0,110220.0,0.00730316]
[1756190936130,1.37399766,110230.0,110220.0,0.00730316]
[1756190936288,1.38247754,110230.0,110220.0,0.00730316]
[1756190937089,1.22611754,110230.0,110220.0,0.00730316]
[1756190937294,1.38255754,110230.0,110220.0,0.00730316]
[1756190937486,1.37407766,110230.0,110220.0,0.00730316]
[1756190937652,1.38256091,110230.0,110220.0,0.00730316]
[1756190937858,1.22612091,110230.0,110220.0,0.00730316]
[1756190938036,1.38884162,110230.0,110220.0,0.00530316]
[1756190938455,1.38884224,110230.0,110220.0,0.00530316]
[1756190939651,1.23248224,110230.0,110220.0,0.00530316]
[1756190939954,1.38884224,110230.0,110220.0,0.00530316]
[1756190940485,1.38884224,110230.0,110220.0,0.00630316]
[1756190940659,1.41325757,110230.0,110220.0,0.00630316]
[1756190942260,1.41309757,110230.0,110220.0,0.00630316]
[1756190942476,1.38868224,110230.0,110220.0,0.00630316]
[1756190942952,1.37172035,110230.0,110220.0,0.00630316]
[1756190943108,1.36535902,110230.0,110220.0,0.00630316]
[1756190943731,1.38874262,110230.0,110220.0,0.00630316]
[1756190945338,1.41315795,110230.0,110220.0,0.00427316]
[1756190946191,1.41315795,110230.0,110220.0,0.00114316]
[1756190946359,1.38874262,110230.0,110220.0,0.00114316]
[1756190946628,1.3717514,110230.0,110220.0,0.00114316]
[1756190946809,1.38874944,110230.0,110220.0,0.00416316]
[1756190947147,1.38874941,110230.0,110220.0,0.00416316]
[1756190948699,0.72900792,110230.0,110220.0,0.00416316]
[1756190948900,1.38858941,110230.0,110220.0,0.00631316]
[1756190949108,1.36521714,110230.0,110220.0,0.00631316]
[1756190949309,1.34571931,110230.0,110220.0,0.00631316]
[1756190951646,0.68597782,110230.0,110220.0,0.00631316]
[1756190952068,1.34571931,110230.0,110220.0,0.00631316]
[1756190952477,1.18967931,110230.0,110220.0,0.00631316]
[1756190952688,1.34563931,110230.0,110220.0,0.00631316]
[1756190953461,1.33714029,110230.0,110220.0,0.00631316]
[1756190954113,1.33714029,110230.0,110220.0,0.00635316]
[1756190957008,1.33714029,110230.0,110220.0,0.00420316]
[1756190957420,1.33714029,110230.0,110220.0,0.00635316]
[1756190958394,1.34564011,110230.0,110220.0,0.00118316]
[1756190958817,1.34564011,110230.0,110220.0,0.00420316]
[1756190960367,1.34564011,110230.0,110220.0,0.00635316]
[1756190962229,1.34564011,110230.0,110220.0,0.00420316]
[1756190962493,1.34564011,110230.0,110220.0,0.00635316]
[1756190962716,1.34564011,110230.0,110220.0,0.00420316]
[1756190962966,1.34564011,110230.0,110220.0,0.00635316]
[1756190963687,1.18968011,110230.0,110220.0,0.00635316]
[1756190963898,1.34548011,110230.0,110220.0,0.00635316]
[1756190965735,1.34548017,110230.0,110220.0,0.00635316]
[1756190966364,1.34548017,110230.0,110220.0,0.00118316]
[1756190966502,1.34547675,110230.0,110220.0,0.00118316]
[1756190967129,1.38841689,110230.0,110220.0,0.00118316]
[1756190968008,1.3820447,110230.0,110220.0,0.00118316]
[1756190968453,1.36505218,110230.0,110220.0,0.00118316]
[1756190969831,1.38323218,110230.0,110220.0,0.00413316]
[1756190970061,1.36505218,110230.0,110220.0,0.00118316]
[1756190970673,0.70531069,110230.0,110220.0,0.00118316]
[1756190970963,1.36505218,110230.0,110220.0,0.00118316]
[1756190972368,1.34547675,110230.0,110220.0,0.00118316]
[1756190973763,1.36504952,110230.0,110220.0,0.00118316]
[1756190974177,1.36504952,110230.0,110220.0,0.00413316]
[1756190974594,1.15409942,110230.0,110220.0,0.00118316]
[1756190974795,1.33553822,110230.0,110220.0,0.00118316]
[1756190975198,1.33553994,110230.0,110220.0,0.00118316]
[1756190975404,1.33553992,110230.0,110220.0,0.00118316]
[1756190975830,1.35253609,110230.0,110220.0,0.00118316]
[1756190977039,1.35890936,110230.0,110220.0,0.00118316]
[1756190977246,1.37848695,110230.0,110220.0,0.00118316]
[1756190978072,1.44828695,110230.0,110220.0,0.00118316]
[1756190978484,1.47557011,110230.0,110220.0,0.00118316]
[1756190979261,1.67592644,110230.0,110220.0,0.00118316]
[1756190980212,1.67592644,110230.0,110220.0,0.00018316]
[1756190980534,1.58448115,110230.0,110220.0,0.00018316]
[1756190980763,1.58548115,110230.0,110220.0,0.00018316]
[1756190981171,1.47725011,110230.0,110220.0,0.00527316]
[1756190981395,1.47725011,110230.0,110220.0,0.00313316]
[1756190981608,1.4772469,110230.0,110220.0,0.00313316]
[1756190981745,1.4772469,110230.0,110220.0,0.00018316]
[1756190982354,0.66202541,110230.0,110220.0,0.00527316]
[1756190982581,1.23238931,110230.0,110220.0,0.00527316]
[1756190982742,1.38782931,110230.0,110220.0,0.00527316]
[1756190984137,1.36054431,110230.0,110220.0,0.00527316]
[1756190984617,1.35417425,110230.0,110220.0,0.00527316]
[1756190984851,1.38010119,110230.0,110220.0,0.00527316]
[1756190985176,0.7202797,110230.0,110220.0,0.00527316]
[1756190985384,1.33709574,110230.0,110220.0,0.00527316]
[1756190985580,1.32860176,110230.0,110220.0,0.00527316]
[1756190986585,0.51350027,110230.0,110220.0,0.00527316]
[1756190986787,0.51350027,110230.0,110220.0,0.09673518]
[1756190987187,0.002,110230.0,110220.0,0.27819045]
[1756190987409,0.001,110230.0,110220.0,0.27819045]
[1756190988505,0.001,110230.0,110220.0,0.43351045]
[1756190989255,0.001,110230.0,110220.0,1.09325194]
[1756190989683,0.001,110230.0,110220.0,1.09425194]
[1756190989892,0.0001603,110240.0,110230.0,0.1814388]
[1756190990109,0.0001603,110240.0,110230.0,0.34779082]
[1756190991189,0.0001603,110240.0,110230.0,0.50315082]
[1756190992018,0.0001603,110240.0,110230.0,0.34779082]
[1756190992251,0.0001603,110240.0,110230.0,0.50311082]
[1756190992791,0.0001603,110240.0,110230.0,0.50411082]
[1756190996607,0.0001603,110240.0,110230.0,0.35079082]
[1756190996785,0.65990179,110240.0,110230.0,0.50583082]
[1756190999638,0.0001603,110240.0,110230.0,0.50583082]
[1756190999823,0.0001603,110240.0,110230.0,0.50575082]
[1756191000893,0.18158265,110240.0,110230.0,0.35079082]
[1756191001035,0.84132414,110240.0,110230.0,0.50567082]
[1756191001243,0.84132414,110240.0,110230.0,0.35079082]
[1756191001450,0.84132414,110240.0,110230.0,0.50563082]
[1756191001889,0.84132414,110240.0,110230.0,0.16935202]
[1756191002087,0.84132414,110240.0,110230.0,0.32427202]
[1756191002266,0.84132414,110240.0,110230.0,0.16935202]
[1756191002488,0.84132414,110240.0,110230.0,0.32427202]
[1756191004306,0.84132414,110240.0,110230.0,0.32423202]
[1756191004526,0.84116384,110240.0,110230.0,0.32423202]
[1756191005541,0.84116384,110240.0,110230.0,0.16935202]
[1756191005897,0.84116384,110240.0,110230.0,0.32419202]
[1756191006315,0.20868033,110250.0,110230.0,0.50563082]
[1756191006537,0.86842182,110250.0,110240.0,0.09146202]
[1756191006728,0.86842182,110250.0,110240.0,0.09664202]
[1756191009618,0.20868033,110250.0,110240.0,0.09664202]
[1756191009819,0.86842182,110250.0,110240.0,0.09664202]
[1756191010281,0.86842182,110250.0,110240.0,0.25128202]
[1756191010697,0.20868033,110250.0,110240.0,0.25128202]
[1756191010928,0.86842182,110250.0,110240.0,0.25128202]
[1756191012679,0.86842038,110250.0,110240.0,0.25128202]
[1756191013430,0.86842038,110250.0,110240.0,0.43270437]
[1756191013637,0.84114738,110250.0,110240.0,0.43270437]
[1756191013844,0.21892797,110260.0,110240.0,0.43270437]
[1756191014043,0.65974149,110250.0,110240.0,0.42965437]
[1756191014486,0.84114738,110250.0,110240.0,0.42965437]
[1756191014698,0.84114738,110250.0,110240.0,0.43270437]
[1756191014900,0.84114738,110250.0,110240.0,0.25128202]
[1756191016308,0.84114738,110250.0,110240.0,0.43270437]
[1756191018464,0.24619997,110260.0,110240.0,0.43270437]
[1756191018696,0.65974149,110250.0,110240.0,0.42965437]
[1756191018898,0.65990179,110250.0,110240.0,0.42965437]
[1756191019081,0.84130768,110250.0,110240.0,0.09359202]
[1756191019283,0.84130768,110250.0,110240.0,0.43250437]
[1756191019710,0.8498026,110250.0,110240.0,0.43250437]
[1756191019964,0.84130768,110250.0,110240.0,0.25108202]
[1756191020370,0.84130768,110250.0,110240.0,0.43250437]
[1756191020499,0.84980242,110250.0,110240.0,0.43250437]
[1756191020898,0.84980242,110250.0,110240.0,0.09146202]
[1756191021174,0.84980242,110250.0,110240.0,0.24586202]
[1756191021390,0.18142235,110240.0,110230.0,0.027272]
[1756191021596,0.1814388,110230.0,110220.0,0.00323316]
[1756191021815,0.84118029,110230.0,110220.0,0.15763316]
[1756191022259,0.84118029,110230.0,110220.0,0.15458316]
[1756191022864,0.86845829,110230.0,110220.0,0.15458316]
[1756191022990,0.86845829,110230.0,110220.0,0.00018316]
[1756191023200,0.86845829,110230.0,110220.0,0.15458316]
[1756191023928,0.86845829,110230.0,110220.0,0.15763316]
[1756191024131,0.84118029,110230.0,110220.0,0.15763316]
[1756191025237,1.33554029,110230.0,110220.0,0.00018316]
[1756191025452,1.34402514,110230.0,110220.0,0.00018316]
[1756191025664,1.36356863,110230.0,110220.0,0.00018316]
[1756191027380,1.39085163,110230.0,110220.0,0.00018316]
[1756191029206,1.46061163,110230.0,110220.0,0.00018316]
[1756191029415,1.49419607,110230.0,110220.0,0.00018316]
[1756191029612,1.51112593,110230.0,110220.0,0.00018316]
[1756191030034,1.51112593,110230.0,110220.0,0.00118316]
[1756191030035,1.52857495,110230.0,110220.0,0.00118316]
[1756191030461,1.49499051,110230.0,110220.0,0.00118316]
[1756191030840,1.49499051,110230.0,110220.0,0.00018316]
[1756191031460,1.4695758,110230.0,110220.0,0.00018316]
[1756191031664,1.4949578,110230.0,110220.0,0.00018316]
[1756191032332,1.47803797,110230.0,110220.0,0.00018316]
[1756191033760,2.35427121,110230.0,110220.0,1e-08]
[1756191033971,2.37752093,110230.0,110220.0,1e-08]
[1756191034178,7.37752093,110230.0,110220.0,1e-08]
[1756191034415,7.52913261,110230.0,110220.0,1e-08]
[1756191034629,7.71168656,110230.0,110220.0,1e-08]
[1756191034861,7.6872478,110230.0,110220.0,1e-08]
[1756191035073,7.70438636,110230.0,110220.0,1e-08]
[1756191035824,7.70322636,110230.0,110220.0,1e-08]
[1756191036498,7.80322636,110230.0,110220.0,1e-08]
[1756191036706,7.64902636,110230.0,110220.0,1e-08]
[1756191036870,7.80322636,110230.0,110220.0,1e-08]
[1756191037975,7.77605344,110230.0,110220.0,1e-08]
[1756191038474,7.742469,110230.0,110220.0,1e-08]
[1756191038915,7.5610302,110230.0,110220.0,1e-08]
[1756191039116,7.72604066,110230.0,110220.0,1e-08]
[1756191039994,7.78679802,110230.0,110220.0,1e-08]
[1756191040239,7.82129074,110230.0,110220.0,1e-08]
[1756191040450,0.53895369,110190.0,110180.0,4e-05]
[1756191040682,1.5141572,110190.0,110180.0,0.00051603]
[1756191040904,1.53356872,110190.0,110180.0,0.00332703]
[1756191041126,1.56516164,110190.0,110180.0,0.00332703]
[1756191041384,1.59874608,110190.0,110180.0,0.00020703]
[1756191041624,0.93899825,110190.0,110180.0,0.00020703]
[1756191041843,1.59873974,110190.0,110180.0,0.00020703]
[1756191042065,1.59873747,110190.0,110180.0,0.00332703]
[1756191042314,1.56515303,110190.0,110180.0,0.00332703]
[1756191042752,1.59244903,110190.0,110180.0,0.00332703]
[1756191044216,1.59344903,110190.0,110180.0,0.00020703]
[1756191046158,1.61771641,110190.0,110180.0,0.00020703]
[1756191046305,1.61775641,110190.0,110180.0,0.00332703]
[1756191046508,1.46351641,110190.0,110180.0,0.00332703]
[1756191046713,1.61775641,110190.0,110180.0,0.00332703]
[1756191047153,1.61775641,110190.0,110180.0,0.00020703]
[1756191047358,1.46351641,110190.0,110180.0,0.00020703]
[1756191047583,1.61775641,110190.0,110180.0,0.00020703]
[1756191047940,1.61774968,110190.0,110180.0,0.00020703]
[1756191048768,1.65010619,110190.0,110180.0,0.00020703]
[1756191049117,1.64217481,110190.0,110180.0,0.00020703]
[1756191049533,1.70401671,110190.0,110180.0,0.00020703]
[1756191050010,1.64217481,110190.0,110180.0,0.00020703]
[1756191050638,1.61691518,110190.0,110180.0,0.00020703]
[1756191050839,1.64218735,110190.0,110180.0,0.00020703]
[1756191051066,1.43083091,110190.0,110180.0,0.00020703]
[1756191051221,1.65841828,110190.0,110180.0,0.00332703]
[1756191051627,1.59349493,110190.0,110180.0,0.00535703]
[1756191051826,1.59349493,110190.0,110180.0,0.00332703]
[1756191052260,1.65841828,110190.0,110180.0,0.00332703]
[1756191052653,1.65841828,110190.0,110180.0,0.00535703]
[1756191053367,0.18153762,110170.0,110160.0,0.07349699]
[1756191053557,1.10318374,110170.0,110160.0,0.07561359]
[1756191053980,1.10319299,110170.0,110160.0,0.07561359]
[1756191054148,1.07890889,110170.0,110160.0,0.07561359]
[1756191054550,1.07890889,110170.0,110160.0,0.0023166]
[1756191055346,1.07890889,110170.0,110160.0,0.0054366]
[1756191056486,1.07890889,110170.0,110160.0,0.0064366]
[1756191056706,0.92466889,110170.0,110160.0,0.0064366]
[1756191056922,1.07890889,110170.0,110160.0,0.0064366]
[1756191057175,1.07893497,110170.0,110160.0,0.0064366]
[1756191057791,1.07893497,110170.0,110160.0,0.0094366]
[1756191059114,0.60495348,110170.0,110160.0,0.0094366]
[1756191059317,1.30173631,110170.0,110160.0,0.0094366]
[1756191059916,1.32607944,110170.0,110160.0,0.0094366]
[1756191060340,1.43069104,110170.0,110160.0,0.1909907]
[1756191060541,1.48041375,110170.0,110160.0,0.1909907]
[1756191060893,0.82067231,110170.0,110160.0,0.1909907]
[1756191061100,1.4804138,110170.0,110160.0,0.1909907]
[1756191061296,1.14463618,110170.0,110160.0,0.28245272]
[1756191061542,0.10785335,110170.0,110160.0,0.28245272]
[1756191061717,0.07547455,110170.0,110160.0,0.28245272]
[1756191061934,0.05112351,110170.0,110160.0,0.28245272]
[1756191062101,0.03421031,110170.0,110160.0,0.28245272]
[1756191062307,0.08717015,110170.0,110160.0,0.28245272]
[1756191062512,0.05114205,110170.0,110160.0,0.28245272]
[1756191063118,0.07549309,110170.0,110160.0,0.27945272]
[1756191064048,0.77184463,110170.0,110160.0,0.28345272]
[1756191065622,0.77185954,110170.0,110160.0,0.28345272]
[1756191065820,0.95339716,110170.0,110160.0,0.43769272]
[1756191066260,0.95339716,110170.0,110160.0,0.28645272]
[1756191066486,0.95339716,110170.0,110160.0,0.44069272]
[1756191067135,0.73245013,110170.0,110160.0,0.44069272]
[1756191067599,0.76847084,110170.0,110160.0,0.44069272]
[1756191067801,0.10872935,110170.0,110160.0,0.44069272]
[1756191068009,0.02439792,110180.0,110170.0,0.18153762]
[1756191068155,0.0323788,110190.0,110180.0,0.18152114]
[1756191068360,0.84124616,110190.0,110180.0,0.27815316]
[1756191068942,0.65974149,110190.0,110180.0,0.27815316]
[1756191069760,0.18166262,110200.0,110180.0,0.27815316]
[1756191069979,1.33568411,110200.0,110190.0,0.09465202]
[1756191070281,1.33568411,110200.0,110190.0,0.09663202]
[1756191070492,1.37337602,110200.0,110190.0,0.09663202]
[1756191071092,0.71363453,110200.0,110190.0,0.09663202]
[1756191071300,1.37337602,110200.0,110190.0,0.09663202]
[1756191072128,1.37546602,110200.0,110190.0,0.09344202]
[1756191072556,1.37546602,110200.0,110190.0,0.09663202]
[1756191073165,2.03520751,110200.0,110190.0,0.09663202]
[1756191073524,1.37546602,110200.0,110190.0,0.09663202]
[1756191076335,0.71363453,110200.0,110190.0,0.09663202]
[1756191076562,1.2190819,110200.0,110190.0,0.27813669]
[1756191076760,0.0001603,110200.0,110190.0,0.27813669]
[1756191076993,0.0001603,110200.0,110190.0,0.34793669]
[1756191078488,0.0001603,110200.0,110190.0,1.00767818]
[1756191078915,0.0001603,110200.0,110190.0,0.34793669]
[1756191079504,0.0001603,110200.0,110190.0,0.35193669]
[1756191080734,0.0001603,110200.0,110190.0,0.50697669]
[1756191081589,0.0001603,110200.0,110190.0,0.50797669]
[1756191083720,0.0001603,110200.0,110190.0,1.16771818]
[1756191085438,0.0001603,110200.0,110190.0,1.16671818]
[1756191085772,0.0001603,110200.0,110190.0,1.19399818]
[1756191085903,0.0001603,110200.0,110190.0,1.5514472]
[1756191086099,0.0001603,110200.0,110190.0,1.6514472]
[1756191086331,0.0001603,110200.0,110190.0,1.6544472]
[1756191088007,0.0001603,110200.0,110190.0,2.0544472]
[1756191088789,0.07329699,110250.0,110240.0,0.18142235]
[1756191089000,0.73517848,110250.0,110240.0,0.42776437]
[1756191089203,0.73517848,110250.0,110240.0,0.42988437]
[1756191089406,0.73517848,110250.0,110240.0,0.42776437]
[1756191089609,0.73517848,110250.0,110240.0,0.09146202]
[1756191089610,0.94727109,110250.0,110240.0,0.09146202]
[1756191089815,0.95003109,110250.0,110240.0,0.24634202]
[1756191090021,0.95050807,110250.0,110240.0,0.24634202]
[1756191091087,0.95050807,110250.0,110240.0,0.24834202]
[1756191091322,0.95050807,110250.0,110240.0,0.09346202]
[1756191091523,0.95050807,110250.0,110240.0,0.24834202]
[1756191092068,0.87721108,110250.0,110240.0,0.24834202]
[1756191092610,0.22590374,110250.0,110240.0,0.09346202]
[1756191092878,0.88564523,110250.0,110240.0,0.24826202]
[1756191093727,0.88564523,110250.0,110240.0,0.09346202]
[1756191093936,0.88564523,110250.0,110240.0,0.24822202]
[1756191094925,0.22590374,110250.0,110240.0,0.24822202]
[1756191095145,0.22314374,110250.0,110240.0,0.24822202]
[1756191095349,0.88288523,110250.0,110240.0,0.42964437]
[1756191096560,0.85219851,110250.0,110240.0,0.42964437]
[1756191096989,0.88378367,110250.0,110240.0,0.43064437]
[1756191097191,0.85219851,110250.0,110240.0,0.24922202]
[1756191097534,0.84256253,110250.0,110240.0,0.24922202]
[1756191097664,0.85099754,110250.0,110240.0,0.24922202]
[1756191097867,0.85099754,110250.0,110240.0,0.43593437]
[1756191098273,0.85099754,110250.0,110240.0,0.43064437]
[1756191098478,0.85099754,110250.0,110240.0,0.24922202]
[1756191098698,0.88471952,110250.0,110240.0,0.24970202]
[1756191099276,0.88471952,110250.0,110240.0,0.09446202]
[1756191099473,0.90415722,110250.0,110240.0,0.24970202]
[1756191100750,0.90415722,110250.0,110240.0,0.24966202]
[1756191101890,0.90159722,110250.0,110240.0,0.24966202]
[1756191102138,0.90415722,110250.0,110240.0,0.24966202]
[1756191102825,0.90415722,110250.0,110240.0,0.09446202]
[1756191103047,0.90415722,110250.0,110240.0,0.24954202]
[1756191104000,0.90415722,110250.0,110240.0,0.09446202]
[1756191104338,0.91049009,110250.0,110240.0,0.24954202]
[1756191104553,1.06557009,110250.0,110240.0,0.15808]
[1756191105540,1.06557009,110250.0,110240.0,0.003]
[1756191106348,0.23992243,110250.0,110240.0,0.003]
[1756191106551,1.08185981,110250.0,110240.0,0.003]
[1756191107238,1.06497756,110250.0,110240.0,0.003]
[1756191107447,1.08189243,110250.0,110240.0,0.003]
[1756191107626,1.07933243,110250.0,110240.0,0.003]
[1756191107886,1.07933243,110250.0,110240.0,0.09975202]
[1756191107887,0.90654756,110250.0,110240.0,0.09975202]
[1756191108532,0.90826756,110250.0,110240.0,0.09975202]
[1756191108853,0.90826756,110250.0,110240.0,0.09446202]
[1756191110551,0.90988756,110250.0,110240.0,0.24938202]
[1756191110895,0.90988756,110250.0,110240.0,0.09446202]
[1756191111101,0.92681647,110250.0,110240.0,0.09446202]
[1756191113013,0.92519647,110250.0,110240.0,0.09446202]
[1756191115047,1.07999647,110250.0,110240.0,0.09446202]
[1756191115274,1.08153647,110250.0,110240.0,0.003]
[1756191115960,1.42153647,110250.0,110240.0,0.003]
[1756191116167,2.08127796,110250.0,110240.0,0.003]
[1756191116373,2.12984616,110250.0,110240.0,0.003]
[1756191116512,2.12138873,110250.0,110240.0,0.003]
[1756191116717,2.12989657,110250.0,110240.0,0.003]
[1756191117354,2.12989655,110250.0,110240.0,0.003]
[1756191117563,2.12989102,110250.0,110240.0,0.002]
[1756191118396,2.16242279,110250.0,110240.0,0.002]
[1756191118598,2.19070179,110250.0,110240.0,0.002]
[1756191118802,0.71649881,110250.0,110240.0,0.002]
[1756191118956,0.66631061,110250.0,110240.0,0.002]
[1756191119162,0.66631061,110250.0,110230.0,0.0031]
[1756191119163,0.52142235,110240.0,110230.0,0.0031]
[1756191119365,1.21714953,110240.0,110230.0,0.00516]
[1756191120155,0.18145527,110220.0,110210.0,0.34526498]
[1756191120383,0.84119676,110220.0,110210.0,0.438787]
[1756191120807,0.65974149,110220.0,110210.0,0.441887]
[1756191121204,0.84119676,110220.0,110210.0,0.441887]
[1756191122834,0.84291676,110220.0,110210.0,0.09662202]
[1756191123056,1.18291676,110220.0,110210.0,0.24614202]
[1756191123283,1.18291676,110220.0,110210.0,0.09146202]
[1756191124555,1.33929676,110220.0,110210.0,0.09146202]
[1756191125029,1.33767676,110220.0,110210.0,0.09146202]
[1756191125222,1.33767676,110220.0,110210.0,0.09346202]
[1756191125403,1.18291676,110220.0,110210.0,0.09346202]
[1756191125613,1.33763676,110220.0,110210.0,0.09346202]
[1756191126029,1.33925676,110220.0,110210.0,0.002]
[1756191127291,1.36654176,110220.0,110210.0,0.002]
[1756191127644,1.21182176,110220.0,110210.0,0.002]
[1756191127851,1.36500176,110220.0,110210.0,0.00716]
[1756191128086,1.36500176,110220.0,110210.0,0.002]
[1756191128485,1.36500176,110220.0,110210.0,0.00716]
[1756191129422,1.36500176,110220.0,110210.0,0.002]
[1756191129630,0.70526027,110220.0,110210.0,0.00206]
[1756191129831,1.36500176,110220.0,110210.0,0.00516]
[1756191130033,0.1814882,110200.0,110190.0,0.34537935]
[1756191130243,0.1814882,110200.0,110190.0,0.43890137]
[1756191130244,0.84122969,110200.0,110190.0,0.43890137]
[1756191130692,0.65974149,110200.0,110190.0,0.44200137]
[1756191131328,0.65974149,110200.0,110190.0,0.44247835]
[1756191133373,0.84121624,110210.0,110190.0,0.44247835]
[1756191133581,0.84121624,110210.0,110200.0,0.09146202]
[1756191133796,0.84121624,110210.0,110200.0,0.09662202]
[1756191134012,0.84319624,110210.0,110200.0,0.09146202]
[1756191134210,0.18345475,110210.0,110200.0,0.09662202]
[1756191134413,0.84121624,110210.0,110200.0,0.09662202]
[1756191134815,0.84319624,110210.0,110200.0,0.09662202]
[1756191135221,0.84319624,110210.0,110200.0,0.09456202]
[1756191135436,0.84319624,110210.0,110200.0,0.09662202]
[1756191137421,0.84121624,110210.0,110200.0,0.09662202]
[1756191137620,0.18147475,110210.0,110200.0,0.27811022]
[1756191137892,0.84121624,110210.0,110200.0,0.27811022]
[1756191138304,1.34490952,110220.0,110200.0,0.27811022]
[1756191138504,1.34490952,110220.0,110200.0,0.27501022]
[1756191138687,0.65974149,110210.0,110200.0,0.27501022]
[1756191138989,0.84121322,110210.0,110200.0,0.27501022]
[1756191139205,0.84121322,110210.0,110200.0,0.27811022]
[1756191140476,0.84325322,110210.0,110200.0,0.09146202]
[1756191141145,0.1814882,110200.0,110190.0,0.00047698]
[1756191141385,1.84457118,110200.0,110190.0,0.00047698]
[1756191141820,1.18482969,110200.0,110190.0,0.00047698]
[1756191142038,1.18326969,110200.0,110190.0,0.00047698]
[1756191142260,1.33858969,110200.0,110190.0,0.00047698]
[1756191142729,1.33850969,110200.0,110190.0,0.00047698]
[1756191143683,1.18326969,110200.0,110190.0,0.00047698]
[1756191143891,1.18326969,110200.0,110190.0,0.00563698]
[1756191145473,0.5214882,110200.0,110190.0,0.00563698]
[1756191145830,0.5214882,110200.0,110190.0,0.27860367]
[1756191146172,0.34,110200.0,110190.0,0.27860367]
[1756191147036,0.34,110200.0,110190.0,0.28060367]
[1756191147664,0.52147173,110210.0,110200.0,0.1814882]
[1756191147863,0.52147173,110210.0,110200.0,0.43013022]
[1756191148071,0.52147173,110210.0,110200.0,0.43311022]
[1756191148249,0.52147173,110210.0,110200.0,0.09642202]
[1756191148250,1.18319322,110210.0,110200.0,0.09642202]
[1756191148451,1.18319322,110210.0,110200.0,0.09146202]
[1756191148655,1.18319322,110210.0,110200.0,0.24670202]
[1756191151602,0.84121322,110210.0,110200.0,0.25166202]
[1756191152329,0.84319322,110210.0,110200.0,0.24670202]
[1756191153191,0.84319322,110210.0,110200.0,0.09146202]
[1756191153401,0.84319322,110210.0,110200.0,0.24662202]
[1756191155085,0.84319322,110210.0,110200.0,0.24960202]
[1756191155299,0.18147173,110210.0,110200.0,0.25158202]
[1756191155520,0.84121322,110210.0,110200.0,0.25158202]
[1756191157769,0.18147173,110210.0,110200.0,0.43307022]
[1756191158611,0.18147173,110210.0,110200.0,0.25158202]
[1756191158814,0.84121322,110210.0,110200.0,0.25158202]
[1756191159748,0.84121322,110210.0,110200.0,0.24642202]
[1756191159749,0.84319322,110210.0,110200.0,0.24642202]
[1756191160706,0.99811322,110210.0,110200.0,0.09146202]
[1756191160920,0.99811322,110210.0,110200.0,0.24634202]
[1756191161556,0.99811322,110210.0,110200.0,0.24734202]
[1756191162661,0.33837173,110210.0,110200.0,0.24734202]
[1756191162898,0.99629429,110210.0,110200.0,0.09246202]
[1756191163301,0.99629429,110210.0,110200.0,0.24726202]
[1756191163533,0.3365528,110210.0,110200.0,0.09246202]
[1756191163749,0.99629429,110210.0,110200.0,0.09246202]
[1756191165304,0.99629429,110210.0,110200.0,0.001]
[1756191165547,1.65765578,110210.0,110200.0,0.001]
[1756191165749,1.99765578,110210.0,110200.0,0.001]
[1756191167204,2.02494378,110210.0,110200.0,0.001]
[1756191168642,2.07491422,110210.0,110200.0,0.001]
[1756191168841,0.1814882,110200.0,110190.0,0.00047698]
[1756191169041,1.65924118,110200.0,110190.0,0.00047698]
[1756191169252,1.99924118,110200.0,110190.0,0.00047698]
[1756191169636,2.00770044,110200.0,110190.0,0.00047698]
[1756191170059,2.03499244,110200.0,110190.0,0.00047698]
[1756191171457,1.87185318,110200.0,110190.0,0.00047698]
[1756191171686,2.02649318,110200.0,110190.0,0.00047698]
[1756191171984,1.87185318,110200.0,110190.0,0.00047698]
[1756191172187,2.02645318,110200.0,110190.0,0.00047698]
[1756191173741,2.02745318,110200.0,110190.0,0.00047698]
[1756191176754,2.06103762,110200.0,110190.0,0.00047698]
[1756191176958,2.0449022,110200.0,110190.0,0.00047698]
[1756191178263,2.13636422,110200.0,110190.0,0.00047698]
[1756191179709,1.98076422,110200.0,110190.0,0.00047698]
[1756191179942,2.13552422,110200.0,110190.0,0.00047698]
[1756191180734,1.97914422,110200.0,110190.0,0.00047698]
[1756191180885,2.0425222,110200.0,110190.0,0.00570698]
[1756191181082,2.0485222,110200.0,110190.0,0.00570698]
[1756191181297,1.87623318,110200.0,110190.0,0.00570698]
[1756191181740,2.03116318,110200.0,110190.0,0.00047698]
[1756191182194,2.02916318,110200.0,110190.0,0.00047698]
[1756191182397,1.87424318,110200.0,110190.0,0.00047698]
[1756191182648,2.02916318,110200.0,110190.0,0.00257698]
[1756191182849,2.02916318,110200.0,110190.0,0.00360698]
[1756191183021,1.87424318,110200.0,110190.0,0.00047698]
[1756191183347,2.02924318,110200.0,110190.0,0.00570698]
[1756191183939,2.02726318,110200.0,110190.0,0.00570698]
[1756191184087,2.02924318,110200.0,110190.0,0.00570698]
[1756191184713,2.02924318,110200.0,110190.0,0.00047698]
[1756191186205,2.03124318,110200.0,110190.0,0.00047698]
[1756191187442,2.03424318,110200.0,110190.0,0.00360698]
[1756191187642,2.03224318,110200.0,110190.0,0.00360698]
[1756191187834,2.0426922,110200.0,110190.0,0.00047698]
[1756191189278,2.0453122,110200.0,110190.0,0.00047698]
[1756191189489,2.20205072,110200.0,110190.0,0.00047698]
[1756191189886,2.22152118,110200.0,110190.0,0.00047698]
[1756191190296,2.19828011,110200.0,110190.0,0.00047698]
[1756191190494,2.22151851,110200.0,110190.0,0.00047698]
[1756191191354,2.18793407,110200.0,110190.0,0.00047698]
[1756191192389,2.18893407,110200.0,110190.0,0.00047698]
[1756191194638,2.18893407,110200.0,110160.0,0.0002]
[1756191194639,0.18153762,110170.0,110160.0,0.0002]
[1756191194863,1.6560606,110170.0,110160.0,0.00543]
[1756191195052,2.01350962,110170.0,110160.0,0.00543]
[1756191195394,2.03239662,110170.0,110160.0,0.0002]
[1756191195598,2.10024798,110170.0,110160.0,0.0002]
[1756191195820,2.19333,110170.0,110160.0,1e-08]
[1756191196024,2.03829,110170.0,110160.0,1e-08]
[1756191196465,2.1921052,110170.0,110160.0,1e-08]
[1756191196870,2.1920652,110170.0,110160.0,1e-08]
[1756191197071,2.23356767,110170.0,110160.0,1e-08]
[1756191197264,2.26086767,110170.0,110160.0,1e-08]
[1756191197471,2.09742806,110170.0,110160.0,1e-08]
[1756191197730,2.25919914,110170.0,110160.0,1e-08]
[1756191197884,2.25919954,110170.0,110160.0,1e-08]
[1756191198087,2.25919954,110170.0,110160.0,0.00723001]
[1756191198688,2.25919954,110170.0,110160.0,0.00200001]